fUST/lending_fUST_20240111
["ID","MTS","AMOUNT","RATE_DAILY","PERIOD"]
[311124206,1704922239487,-3470.46394471,0.00029531,2]
[311124207,1704922239496,-151.0,0.00029857,2]
[311124208,1704922239505,-6973.85683356,0.0003,4]
[311124209,1704922239516,-463.38099934,0.0003,4]
[311124210,1704922239525,-10528.01709463,0.0003,4]
[311124211,1704922239534,-165.56576911,0.0003,7]
[311124212,1704922239543,-279.76130408,0.0003,4]
[311124213,1704922239553,-282.23116997,0.0003,3]
[311124214,1704922239562,-339.85578053,0.0003,4]
[311124215,1704922239571,-282.0,0.0003,2]
[311124216,1704922239581,-150.360848,0.00030073,2]
[311124217,1704922239591,-152.788532,0.00030073,2]
[311124218,1704922239599,-164.471897,0.00030073,2]
[311124219,1704922239609,-297.82411902,0.00030134,4]
[311124220,1704922239618,-10793.46523378,0.00030134,4]
[311124221,1704922239627,-541.74757718,0.00030134,4]
[311124222,1704922239637,-256.21241228,0.00030134,4]
[311124223,1704922239655,-1545.05101549,0.00030134,4]
[311124224,1704922239665,-309.76767193,0.00030134,4]
[311124225,1704922239674,-309.59745829,0.00030134,4]
[311124226,1704922239685,-154.92253873,0.00030134,4]
[311124227,1704922239694,-155.09294423,0.00030134,4]
[311124228,1704922239703,-254.61583376,0.00030134,4]
[311124229,1704922239712,-2707.3394266,0.00030134,4]
[311124230,1704922239721,-2012.04779527,0.00030134,4]
[311124231,1704922239731,-311.78343705,0.00030134,4]
[311124232,1704922239740,-24670.13568904,0.00030134,4]
[311124233,1704922239749,-174.73357117,0.00030134,4]
[311124234,1704922239759,-1235.04940633,0.00030134,4]
[311124236,1704922239773,-312.5833924,0.00030134,4]
[311124238,1704922239783,-155.07737894,0.00030134,4]
[311124240,1704922239792,-155.88503121,0.00030134,4]
[311124241,1704922239801,-438.75225678,0.00030134,2]
[311124242,1704922239811,-155.40179966,0.00030135,4]
[311124243,1704922239821,-295.48935211,0.00030135,4]
[311124244,1704922239830,-309.78315799,0.00030135,4]
[311124245,1704922239839,-399.84612211,0.00030135,4]
[311124246,1704922239849,-158.88674615,0.00030135,4]
[311124247,1704922239859,-228.88619604,0.00030135,4]
[311124248,1704922239868,-3346.08358131,0.00030135,2]
[311124249,1704922239878,-500.0,0.00030136,2]
[311124250,1704922239897,-500.0,0.00030136,2]
[311124252,1704922239907,-500.0,0.00030136,2]
[311124253,1704922239917,-500.0,0.00030136,2]
[311124255,1704922239927,-500.0,0.00030136,2]
[311124257,1704922239937,-500.0,0.00030136,2]
[311124259,1704922239948,-500.0,0.00030136,2]
[311124260,1704922239958,-501.51100543,0.00030136,2]
[311124261,1704922239968,-500.0,0.00030136,2]
[311124262,1704922239979,-500.0,0.00030136,2]
[311124263,1704922239989,-500.0,0.00030136,2]
[311124264,1704922239999,-500.0,0.00030136,2]
[311124265,1704922240010,-500.0,0.00030136,2]
[311124266,1704922240021,-500.0,0.00030136,2]
[311124267,1704922240031,-500.0,0.00030136,2]
[311124268,1704922240042,-500.0,0.00030136,2]
[311124269,1704922240052,-500.0,0.00030136,2]
[311124270,1704922240062,-420.13288424,0.00030136,2]
[311124271,1704922240073,-500.0,0.00030136,2]
[311124272,1704922240083,-503.18593563,0.00030136,2]
[311124273,1704922240093,-500.0,0.00030136,2]
[311124274,1704922240103,-500.0,0.00030136,2]
[311124275,1704922240114,-500.0,0.00030136,2]
[311124276,1704922240125,-500.0,0.00030136,2]
[311124277,1704922240136,-500.0,0.00030136,2]
[311124278,1704922240158,-504.21942309,0.00030136,2]
[311124279,1704922240168,-500.0,0.00030136,2]
[311124280,1704922240179,-1000.0,0.00030136,2]
[311124281,1704922240189,-500.0,0.00030136,2]
[311124282,1704922240203,-165.36565225,0.00030136,2]
[311124283,1704922240213,-555.23740304,0.00030136,2]
[311124284,1704922240223,-500.0,0.00030136,2]
[311124285,1704922240234,-500.0,0.00030136,2]
[311124286,1704922240244,-500.0,0.00030136,2]
[311124287,1704922240255,-500.0,0.00030136,2]
[311124288,1704922240265,-500.0,0.00030136,2]
[311124289,1704922240275,-500.0,0.00030136,2]
[311124290,1704922240285,-500.0,0.00030136,2]
[311124291,1704922240295,-500.0,0.00030136,2]
[311124292,1704922240305,-500.0,0.00030136,2]
[311124293,1704922240314,-502.52673231,0.00030136,2]
[311124294,1704922240324,-500.0,0.00030136,2]
[311124295,1704922240333,-500.0,0.00030136,2]
[311124296,1704922240342,-500.0,0.00030136,2]
[311124297,1704922240352,-500.0,0.00030136,2]
[311124298,1704922240361,-596.14,0.00030136,2]
[311124299,1704922240371,-596.14,0.00030136,2]
[311124300,1704922240380,-596.14,0.00030136,2]
[311124301,1704922240393,-596.14,0.00030136,2]
[311124302,1704922240406,-596.14,0.00030136,2]
[311124303,1704922240416,-596.14,0.00030136,2]
[311124304,1704922240426,-596.14,0.00030136,2]
[311124305,1704922240435,-596.14,0.00030136,2]
[311124306,1704922240444,-596.14,0.00030136,2]
[311124307,1704922240453,-596.14,0.00030136,2]
[311124308,1704922240462,-596.14,0.00030136,2]
[311124309,1704922240472,-596.14,0.00030136,2]
[311124310,1704922240483,-596.14,0.00030136,2]
[311124311,1704922240492,-596.14,0.00030136,2]
[311124312,1704922240503,-596.14,0.00030136,2]
[311124313,1704922240513,-596.14,0.00030136,2]
[311124314,1704922240523,-596.14,0.00030136,2]
[311124315,1704922240533,-596.14,0.00030136,2]
[311124316,1704922240543,-596.14,0.00030136,2]
[311124317,1704922240551,-596.14,0.00030136,2]
[311124319,1704922240561,-596.14,0.00030136,2]
[311124321,1704922240570,-596.14,0.00030136,2]
[311124323,1704922240579,-596.14,0.00030136,2]
[311124325,1704922240589,-596.33317931,0.00030136,2]
[311124327,1704922240597,-500.0,0.00030136,2]
[311124329,1704922240607,-500.0,0.00030136,2]
[311124331,1704922240616,-500.0,0.00030136,2]
[311124333,1704922240625,-500.0,0.00030136,2]
[311124335,1704922240635,-500.0,0.00030136,2]
[311124337,1704922240654,-590.32,0.00030136,2]
[311124339,1704922240663,-500.0,0.00030136,2]
[311124341,1704922240673,-500.0,0.00030136,2]
[311124343,1704922240683,-500.0,0.00030136,2]
[311124345,1704922240693,-500.0,0.00030136,2]
[311124347,1704922240703,-304.98909376,0.00030136,2]
[311124349,1704922240713,-177.36731028,0.00030136,2]
[311124351,1704922240722,-500.0,0.00030136,2]
[311124353,1704922240731,-503.86569273,0.00030136,2]
[311124355,1704922240741,-500.0,0.00030136,2]
[311124357,1704922240750,-500.0,0.00030136,2]
[311124359,1704922240759,-500.0,0.00030136,2]
[311124361,1704922240772,-500.0,0.00030136,2]
[311124363,1704922240781,-500.0,0.00030136,2]
[311124365,1704922240791,-500.0,0.00030136,2]
[311124367,1704922240800,-500.0,0.00030136,2]
[311124369,1704922240809,-500.0,0.00030136,2]
[311124371,1704922240819,-500.0,0.00030136,2]
[311124373,1704922240828,-500.0,0.00030136,2]
[311124375,1704922240837,-500.0,0.00030136,2]
[311124377,1704922240847,-500.0,0.00030136,2]
[311124379,1704922240857,-500.0,0.00030136,2]
[311124381,1704922240868,-500.0,0.00030136,2]
[311124383,1704922240877,-500.0,0.00030136,2]
[311124385,1704922240887,-500.0,0.00030136,2]
[311124386,1704922240906,-500.0,0.00030136,2]
[311124388,1704922240917,-500.0,0.00030136,2]
[311124390,1704922240927,-500.0,0.00030136,2]
[311124392,1704922240936,-500.0,0.00030136,2]
[311124394,1704922240946,-500.0,0.00030136,2]
[311124396,1704922240956,-500.0,0.00030136,2]
[311124398,1704922240965,-500.0,0.00030136,2]
[311124400,1704922240975,-500.0,0.00030136,2]
[311124402,1704922240985,-500.0,0.00030136,2]
[311124404,1704922240995,-500.0,0.00030136,2]
[311124406,1704922241005,-500.0,0.00030136,2]
[311124408,1704922241015,-500.0,0.00030136,2]
[311124411,1704922241032,-500.0,0.00030136,2]
[311124413,1704922241042,-500.0,0.00030136,2]
[311124415,1704922241055,-500.0,0.00030136,2]
[311124417,1704922241065,-500.0,0.00030136,2]
[311124419,1704922241075,-251.80710682,0.00030136,2]
[311124421,1704922241085,-220.0,0.00030136,2]
[311124422,1704922241095,-500.0,0.00030136,2]
[311124424,1704922241105,-552.6257611,0.00030136,2]
[311124427,1704922241117,-500.0,0.00030136,2]
[311124428,1704922241127,-500.0,0.00030136,2]
[311124430,1704922241137,-500.0,0.00030136,2]
[311124432,1704922241155,-500.0,0.00030136,2]
[311124435,1704922241166,-500.0,0.00030136,2]
[311124436,1704922241177,-613.7161458,0.00030136,2]
[311124437,1704922241187,-500.0,0.00030136,2]
[311124438,1704922241199,-500.0,0.00030136,2]
[311124439,1704922241210,-500.0,0.00030136,2]
[311124440,1704922241221,-1150.33,0.00030136,2]
[311124441,1704922241232,-349.63272372,0.00030136,2]
[311124442,1704922241243,-500.0,0.00030136,2]
[311124443,1704922241254,-502.85008081,0.00030136,2]
[311124444,1704922241265,-500.0,0.00030136,2]
[311124445,1704922241276,-500.0,0.00030136,2]
[311124446,1704922241286,-500.0,0.00030136,2]
[311124447,1704922241297,-244.83693803,0.00030136,2]
[311124448,1704922241307,-500.0,0.00030136,2]
[311124449,1704922241323,-500.0,0.00030136,2]
[311124450,1704922241334,-510.22720106,0.00030136,2]
[311124461,1704922241456,-500.0,0.00030136,2]
[311124463,1704922241468,-500.6363967,0.00030136,2]
[311124466,1704922241479,-500.0,0.00030136,2]
[311124467,1704922241490,-503.20325283,0.00030136,2]
[311124470,1704922241502,-500.0,0.00030136,2]
[311124472,1704922241513,-500.0,0.00030136,2]
[311124474,1704922241532,-840.17,0.00030136,2]
[311124476,1704922241543,-500.0,0.00030136,2]
[311124478,1704922241555,-584.33519268,0.00030136,2]
[311124480,1704922241565,-500.0,0.00030136,2]
[311124482,1704922241576,-500.0,0.00030136,2]
[311124484,1704922241588,-500.0,0.00030136,2]
[311124486,1704922241598,-500.0,0.00030136,2]
[311124488,1704922241609,-500.0,0.00030136,2]
[311124490,1704922241620,-500.0,0.00030136,2]
[311124492,1704922241631,-500.0,0.00030136,2]
[311124494,1704922241648,-500.0,0.00030136,2]
[311124496,1704922241659,-571.3599163,0.00030136,2]
[311124498,1704922241669,-500.0,0.00030136,2]
[311124500,1704922241680,-1324.87,0.00030136,2]
[311124502,1704922241690,-500.0,0.00030136,2]
[311124503,1704922241701,-500.0,0.00030136,2]
[311124504,1704922241712,-500.0,0.00030136,2]
[311124505,1704922241722,-1150.57,0.00030136,2]
[311124506,1704922241733,-500.0,0.00030136,2]
[311124507,1704922241744,-697.69,0.00030136,2]
[311124508,1704922241755,-500.0,0.00030136,2]
[311124509,1704922241768,-500.0,0.00030136,2]
[311124510,1704922241779,-501.29303316,0.00030136,2]
[311124511,1704922241790,-1250.61,0.00030136,2]
[311124512,1704922241800,-504.09011111,0.00030136,2]
[311124513,1704922241811,-500.0,0.00030136,2]
[311124514,1704922241821,-3336.75,0.00030136,2]
[311124515,1704922241830,-500.0,0.00030136,2]
[311124516,1704922241840,-454.51255567,0.00030136,2]
[311124517,1704922241849,-500.0,0.00030136,2]
[311124518,1704922241859,-500.0,0.00030136,2]
[311124519,1704922241869,-500.0,0.00030136,2]
[311124520,1704922241878,-501.47,0.00030136,2]
[311124521,1704922241888,-500.0,0.00030136,2]
[311124522,1704922241904,-500.0,0.00030136,2]
[311124523,1704922241914,-500.0,0.00030136,2]
[311124525,1704922241924,-683.69,0.00030136,2]
[311124527,1704922241934,-500.0,0.00030136,2]
[311124529,1704922241944,-501.07799882,0.00030136,2]
[311124530,1704922241953,-500.0,0.00030136,2]
[311124531,1704922241963,-500.0,0.00030136,2]
[311124532,1704922241972,-500.0,0.00030136,2]
[311124534,1704922241982,-503.17133488,0.00030136,2]
[311124536,1704922241991,-500.0,0.00030136,2]
[311124537,1704922242000,-500.0,0.00030136,2]
[311124540,1704922242010,-500.0,0.00030136,2]
[311124543,1704922242037,-500.0,0.00030136,2]
[311124545,1704922242046,-430.68418418,0.00030136,2]
[311124547,1704922242056,-500.0,0.00030136,2]
[311124549,1704922242072,-500.0,0.00030136,2]
[311124550,1704922242082,-500.0,0.00030136,2]
[311124552,1704922242092,-500.0,0.00030136,2]
[311124554,1704922242102,-500.0,0.00030136,2]
[311124557,1704922242112,-500.0,0.00030136,2]
[311124558,1704922242122,-500.0,0.00030136,2]
[311124560,1704922242132,-500.0,0.00030136,2]
[311124561,1704922242147,-500.0,0.00030136,2]
[311124562,1704922242156,-500.0,0.00030136,2]
[311124563,1704922242167,-500.0,0.00030136,2]
[311124565,1704922242177,-500.0,0.00030136,2]
[311124567,1704922242188,-502.72071019,0.00030136,2]
[311124570,1704922242198,-500.0,0.00030136,2]
[311124572,1704922242207,-500.0,0.00030136,2]
[311124576,1704922242217,-503.4346223,0.00030136,2]
[311124579,1704922242227,-500.0,0.00030136,2]
[311124581,1704922242238,-500.0,0.00030136,2]
[311124583,1704922242249,-588.77,0.00030136,2]
[311124584,1704922242259,-500.0,0.00030136,2]
[311124587,1704922242270,-500.0,0.00030136,2]
[311124590,1704922242279,-500.0,0.00030136,2]
[311124592,1704922242292,-500.0,0.00030136,2]
[311124594,1704922242302,-180.21967225,0.00030136,2]
[311124596,1704922242313,-604.63,0.00030136,2]
[311124598,1704922242323,-500.0,0.00030136,2]
[311124600,1704922242333,-500.0,0.00030136,2]
[311124602,1704922242344,-500.0,0.00030136,2]
[311124605,1704922242353,-571.23633064,0.00030136,2]
[311124608,1704922242363,-500.0,0.00030136,2]
[311124612,1704922242373,-500.0,0.00030136,5]
[311124615,1704922242383,-7101.37,0.00030136,2]
[311124618,1704922242397,-5000.0,0.00030137,2]
[311124621,1704922242408,-5000.0,0.00030137,2]
[311124625,1704922242417,-3815.04736332,0.00030137,2]
[311124628,1704922242427,-680.95063251,0.000302,3]
[311124631,1704922242437,-5807.32435482,0.0003031,3]
[311124635,1704922242456,-10202.84952288,0.0003031,3]
[311124639,1704922242468,-22353.47671467,0.0003031,3]
[311124642,1704922242478,-500.0,0.0003041,2]
[311124645,1704922242488,-500.0,0.0003041,2]
[311124648,1704922242497,-500.0,0.0003041,2]
[311124650,1704922242507,-500.0,0.0003041,2]
[311124652,1704922242517,-500.0,0.0003041,2]
[311124654,1704922242527,-500.0,0.0003041,2]
[311124656,1704922242537,-500.0,0.0003041,2]
[311124657,1704922242547,-500.0,0.0003041,2]
[311124658,1704922242557,-154.29785145,0.0003041,2]
[311124659,1704922242566,-500.0,0.0003041,2]
[311124660,1704922242576,-500.0,0.0003041,2]
[311124661,1704922242586,-500.0,0.0003041,2]
[311124662,1704922242596,-500.0,0.0003041,2]
[311124663,1704922242606,-500.0,0.0003041,2]
[311124665,1704922242616,-500.0,0.0003041,2]
[311124667,1704922242625,-500.0,0.0003041,2]
[311124669,1704922242634,-500.0,0.0003041,2]
[311124671,1704922242650,-501.35962442,0.0003041,2]
[311124673,1704922242659,-590.32,0.0003041,2]
[311124674,1704922242669,-500.0,0.0003041,2]
[311124675,1704922242679,-500.0,0.0003041,2]
[311124677,1704922242688,-500.0,0.0003041,2]
[311124679,1704922242698,-500.0,0.0003041,2]
[311124681,1704922242708,-500.0,0.0003041,2]
[311124683,1704922242717,-500.0,0.0003041,2]
[311124684,1704922242727,-262.51226806,0.0003041,2]
[311124686,1704922242737,-500.0,0.0003041,2]
[311124688,1704922242748,-500.0,0.0003041,2]
[311124690,1704922242757,-500.0,0.0003041,2]
[311124692,1704922242769,-500.0,0.0003041,2]
[311124693,1704922242779,-500.0,0.0003041,2]
[311124695,1704922242790,-500.0,0.0003041,2]
[311124697,1704922242800,-185.62363994,0.0003041,2]
[311124699,1704922242810,-500.0,0.0003041,2]
[311124701,1704922242820,-500.0,0.0003041,2]
[311124703,1704922242830,-387.73802533,0.0003041,2]
[311124705,1704922242840,-500.0,0.0003041,2]
[311124707,1704922242850,-544.4,0.0003041,2]
[311124709,1704922242861,-500.0,0.0003041,2]
[311124711,1704922242871,-500.0,0.0003041,2]
[311124713,1704922242882,-500.0,0.0003041,2]
[311124715,1704922242896,-500.0,0.0003041,2]
[311124717,1704922242905,-537.54904567,0.0003041,2]
[311124719,1704922242916,-500.0,0.0003041,2]
[311124721,1704922242925,-500.0,0.0003041,2]
[311124723,1704922242935,-500.0,0.0003041,2]
[311124725,1704922242946,-645.03284407,0.0003041,2]
[311124727,1704922242956,-500.0,0.0003041,2]
[311124729,1704922242965,-234.46844841,0.0003041,2]
[311124731,1704922242975,-500.0,0.0003041,2]
[311124733,1704922242984,-500.0,0.0003041,2]
[311124735,1704922242993,-500.0,0.0003041,2]
[311124737,1704922243003,-541.08365666,0.0003041,2]
[311124739,1704922243012,-500.0,0.0003041,2]
[311124741,1704922243022,-1150.33,0.0003041,2]
[311124743,1704922243032,-500.0,0.0003041,2]
[311124745,1704922243041,-500.0,0.0003041,2]
[311124747,1704922243050,-500.0,0.0003041,2]
[311124748,1704922243080,-500.0,0.0003041,2]
[311124750,1704922243090,-374.31,0.0003041,2]
[311124753,1704922243101,-840.17,0.0003041,2]
[311124755,1704922243110,-500.0,0.0003041,2]
[311124756,1704922243119,-500.0,0.0003041,2]
[311124759,1704922243128,-500.0,0.0003041,2]
[311124761,1704922243138,-500.0,0.0003041,2]
[311124762,1704922243151,-500.0,0.0003041,2]
[311124764,1704922243161,-1324.87,0.0003041,2]
[311124766,1704922243170,-500.0,0.0003041,2]
[311124768,1704922243180,-1150.57,0.0003041,2]
[311124770,1704922243190,-697.69,0.0003041,2]
[311124772,1704922243199,-1250.61,0.0003041,2]
[311124774,1704922243208,-500.0,0.0003041,2]
[311124776,1704922243218,-3336.75,0.0003041,2]
[311124778,1704922243227,-500.0,0.0003041,2]
[311124780,1704922243236,-501.47,0.0003041,2]
[311124782,1704922243246,-500.0,0.0003041,2]
[311124784,1704922243255,-500.0,0.0003041,2]
[311124786,1704922243264,-683.69,0.0003041,2]
[311124788,1704922243273,-500.0,0.0003041,2]
[311124790,1704922243282,-500.0,0.0003041,2]
[311124792,1704922243291,-501.18917969,0.0003041,2]
[311124794,1704922243300,-229.52217026,0.0003041,2]
[311124796,1704922243309,-501.1581429,0.0003041,2]
[311124798,1704922243318,-500.0,0.0003041,2]
[311124800,1704922243327,-500.0,0.0003041,2]
[311124802,1704922243336,-500.0,0.0003041,2]
[311124804,1704922243345,-500.0,0.0003041,2]
[311124806,1704922243355,-500.0,0.0003041,2]
[311124808,1704922243364,-591.19904289,0.0003041,2]
[311124810,1704922243373,-500.0,0.0003041,2]
[311124812,1704922243384,-521.17339293,0.0003041,2]
[311124814,1704922243398,-500.0,0.0003041,2]
[311124816,1704922243409,-500.0,0.0003041,2]
[311124818,1704922243419,-500.0,0.0003041,2]
[311124820,1704922243428,-500.0,0.0003041,2]
[311124822,1704922243438,-500.0,0.0003041,2]
[311124824,1704922243447,-500.0,0.0003041,2]
[311124826,1704922243456,-500.0,0.0003041,2]
[311124828,1704922243466,-604.63,0.0003041,2]
[311124830,1704922243475,-500.0,0.0003041,2]
[311124832,1704922243484,-500.0,0.0003041,2]
[311124834,1704922243494,-500.0,0.0003041,2]
[311124836,1704922243503,-7101.37,0.0003041,2]
[311124838,1704922243512,-150.360848,0.00030449,2]
[311124840,1704922243522,-152.788532,0.00030449,2]
[311124842,1704922243531,-155.0,0.00030506,2]
[311124844,1704922243540,-500.0,0.00030684,2]
[311124846,1704922243549,-500.0,0.00030684,2]
[311124848,1704922243559,-500.0,0.00030684,2]
[311124850,1704922243568,-500.0,0.00030684,2]
[311124852,1704922243577,-500.0,0.00030684,2]
[311124854,1704922243586,-500.0,0.00030684,2]
[311124856,1704922243595,-590.32,0.00030684,2]
[311124861,1704922243626,-500.0,0.00030684,2]
[311124863,1704922243635,-500.0,0.00030684,2]
[311124865,1704922243648,-500.0,0.00030684,2]
[311124867,1704922243657,-500.0,0.00030684,2]
[311124869,1704922243666,-500.0,0.00030684,2]
[311124871,1704922243675,-575.29318989,0.00030684,2]
[311124873,1704922243685,-500.0,0.00030684,2]
[311124875,1704922243696,-500.0,0.00030684,2]
[311124877,1704922243706,-500.0,0.00030684,2]
[311124879,1704922243716,-500.0,0.00030684,2]
[311124880,1704922243727,-500.0,0.00030684,2]
[311124881,1704922243738,-152.83967137,0.00030684,2]
[311124883,1704922243748,-500.0,0.00030684,2]
[311124885,1704922243757,-514.17023555,0.00030684,2]
[311124887,1704922243770,-402.09100132,0.00030684,2]
[311124888,1704922243779,-500.0,0.00030684,2]
[311124889,1704922243788,-500.0,0.00030684,2]
[311124890,1704922243798,-500.0,0.00030684,2]
[311124891,1704922243809,-500.0,0.00030684,2]
[311124893,1704922243819,-255.39,0.00030684,2]
[311124894,1704922243829,-1150.33,0.00030684,2]
[311124895,1704922243838,-500.0,0.00030684,2]
[311124896,1704922243850,-183.73886406,0.00030684,2]
[311124897,1704922243859,-840.17,0.00030684,2]
[311124898,1704922243869,-500.0,0.00030684,2]
[311124899,1704922243879,-500.0,0.00030684,2]
[311124900,1704922243890,-500.0,0.00030684,2]
[311124901,1704922243902,-1324.87,0.00030684,2]
[311124902,1704922243911,-1150.57,0.00030684,2]
[311124903,1704922243921,-697.69,0.00030684,2]
[311124904,1704922243930,-1250.61,0.00030684,2]
[311124905,1704922243940,-159.07,0.00030684,2]
[311124906,1704922243949,-3336.75,0.00030684,2]
[311124907,1704922243958,-501.47,0.00030684,2]
[311124908,1704922243968,-500.0,0.00030684,2]
[311124909,1704922243979,-683.69,0.00030684,2]
[311124910,1704922243989,-500.0,0.00030684,2]
[311124911,1704922243998,-500.0,0.00030684,2]
[311124912,1704922244007,-500.0,0.00030684,2]
[311124913,1704922244016,-511.15113817,0.00030684,2]
[311124914,1704922244026,-500.0,0.00030684,2]
[311124915,1704922244036,-500.0,0.00030684,2]
[311124916,1704922244046,-500.0,0.00030684,2]
[311124917,1704922244055,-373.21688216,0.00030684,2]
[311124918,1704922244064,-500.0,0.00030684,2]
[311124919,1704922244073,-500.0,0.00030684,2]
[311124920,1704922244082,-500.0,0.00030684,2]
[311124921,1704922244091,-500.0,0.00030684,2]
[311124922,1704922244101,-604.63,0.00030684,2]
[311124923,1704922244110,-188.56233448,0.00030684,2]
[311124924,1704922244119,-500.0,0.00030684,2]
[311124925,1704922244129,-500.0,0.00030684,2]
[311124926,1704922244138,-5000.0,0.0003075,2]
[311124927,1704922244150,-150.360848,0.00030825,2]
[311124928,1704922244159,-152.788532,0.00030825,2]
[311124929,1704922244168,-257.81043058,0.00030887,2]
[311124930,1704922244177,-198.44033936,0.00030887,2]
[311124931,1704922244186,-911.468315,0.000309,2]
[311124932,1704922244196,-150.61472397,0.00030903,7]
[311124933,1704922244205,-486.02599513,0.00030932,2]
[311124934,1704922244214,-531.32107642,0.00030958,2]
[311124935,1704922244224,-500.0,0.00030958,2]
[311124936,1704922244233,-500.0,0.00030958,2]
[311124937,1704922244242,-500.0,0.00030958,2]
[311124938,1704922244251,-590.32,0.00030958,2]
[311124939,1704922244260,-500.0,0.00030958,2]
[311124940,1704922244269,-500.0,0.00030958,2]
[311124941,1704922244279,-500.0,0.00030958,2]
[311124942,1704922244288,-500.0,0.00030958,2]
[311124943,1704922244297,-500.0,0.00030958,2]
[311124944,1704922244307,-500.0,0.00030958,2]
[311124945,1704922244316,-500.0,0.00030958,2]
[311124946,1704922244326,-500.0,0.00030958,2]
[311124947,1704922244335,-500.0,0.00030958,2]
[311124948,1704922244345,-310.36155904,0.00030958,2]
[311124949,1704922244354,-500.0,0.00030958,2]
[311124950,1704922244364,-1150.33,0.00030958,2]
[311124951,1704922244373,-500.0,0.00030958,2]
[311124952,1704922244383,-840.17,0.00030958,2]
[311124953,1704922244396,-500.0,0.00030958,2]
[311124954,1704922244405,-500.0,0.00030958,2]
[311124955,1704922244414,-1324.87,0.00030958,2]
[311124956,1704922244423,-500.0,0.00030958,2]
[311124957,1704922244432,-1150.57,0.00030958,2]
[311124958,1704922244441,-697.69,0.00030958,2]
[311124959,1704922244451,-1250.61,0.00030958,2]
[311124960,1704922244460,-3336.75,0.00030958,2]
[311124961,1704922244470,-501.47,0.00030958,2]
[311124962,1704922244479,-500.0,0.00030958,2]
[311124963,1704922244489,-683.69,0.00030958,2]
[311124964,1704922244498,-500.0,0.00030958,2]
[311124965,1704922244508,-500.0,0.00030958,2]
[311124966,1704922244517,-500.0,0.00030958,2]
[311124967,1704922244526,-500.0,0.00030958,2]
[311124968,1704922244536,-500.0,0.00030958,2]
[311124969,1704922244546,-500.0,0.00030958,2]
[311124970,1704922244558,-507.29,0.00030958,2]
[311124971,1704922244567,-500.0,0.00030958,2]
[311124972,1704922244577,-604.63,0.00030958,2]
[311124973,1704922244586,-500.0,0.00030958,2]
[311124974,1704922244595,-500.0,0.00030958,2]
[311124975,1704922244605,-1184.57586318,0.00031,2]
[311124976,1704922244614,-9431.63624703,0.00031,4]
[311124977,1704922244623,-150.61472397,0.00031032,7]
[311124978,1704922244633,-151.0,0.0003115,2]
[311124979,1704922244645,-200.0,0.000312,4]
[311124980,1704922244655,-150.360848,0.00031201,2]
[311124981,1704922244664,-152.788532,0.00031201,2]
[311124982,1704922244674,-500.0,0.00031232,2]
[311124983,1704922244683,-500.0,0.00031232,2]
[311124984,1704922244693,-500.0,0.00031232,2]
[311124985,1704922244702,-590.32,0.00031232,2]
[311124986,1704922244711,-500.0,0.00031232,2]
[311124987,1704922244721,-500.0,0.00031232,2]
[311124988,1704922244731,-500.0,0.00031232,2]